{"text_format":"1","workbook":"xlsx","n_sheets":7,"sheets":["Titullapa","B. Info par uzn","A.Informācija par pretendentu ","B.Projekts","B.9 piemēri","c. Pavaddok-ti","1.pielikums"],"not_rendered":{"charts":0,"images":5,"macros":1,"external_links":0,"defined_names":8,"comments":5,"pivot_tables":0},"unopened":[],"bounds":{"document_bytes":16777216,"sheet_cells":100000,"rows_first":2000,"rows_last":500,"rows_between":2000,"halvings":0,"cell_chars":16384,"cell_head_chars":4096},"cells_cut":0,"cells_raw":0,"read":"whole","date_system":"1900"}

{"sheet":"Titullapa","index":0,"n_rows":26,"n_cols":9,"rows_kept":26,"cut":false,"hidden":false,"merged":[[25,2,25,3],[25,4,25,6],[17,2,17,3],[17,4,17,6],[19,2,19,3],[22,2,22,3],[22,4,22,6],[21,2,21,3],[24,2,24,3],[24,4,24,6],[18,2,18,3],[18,4,18,6],[19,4,19,6],[21,4,21,6],[20,2,20,3],[20,4,20,6],[5,8,8,16],[3,8,4,16],[16,4,16,6],[12,0,12,6],[11,0,11,6],[14,4,14,6],[8,0,8,6],[9,0,9,6],[16,2,16,3],[10,0,10,6],[15,2,15,3],[15,4,15,6],[14,2,14,3]]}
[]
[]
[]
[null,null,null,null,null,null,null,null,"Ja ir vēlēšanās izprintēt veidlapu ar komentāriem, tad nepieciešams veikt sekojošas darbības:"]
[]
[null,null,null,null,null,null,null,null," \"File\" - \"Print\" - nomainīt lapas novietojumu uz \"Landscape orientation\" - tālāk  \"Page Setup\" - izvēlas sadaļu \"Sheet\" un lodziņā pie \"Comments\" norāda \"As displayed on sheet\"- (ja vēlas palielināt materiāla izmēru, tad sadaļā \"Page\" pie \"Scaling\" jāpalielina izmērs uz nepieciešamo)- tālāk \"OK\" un \"Print\""]
[]
[]
["Eiropas Savienības \nEiropas Lauksaimniecības fonda lauku attīstībai                                        (ELFLA)"]
["Atklāta projektu iesniegumu konkursa"]
["Latvijas Lauku attīstības programmas 2014.–2020.gadam  "]
["apakšpasākuma 19.2. „Darbības īstenošana saskaņā ar sabiedrības virzītas vietējās attīstības stratēģiju” aktivitātes 19.2.2. „Vietas potenciāla attīstības iniciatīvas”\nprojekta iesniegums\n"]
["projekta iesniegums"]
[]
[null,null,"Attiecināmā sabiedrības virzītas vietējās attīstības stratēģijas rīcība"]
[null,null,"Vietējā rīcības grupa",null,"Biedrība \"Daugavas partnerība\" "]
[null,null,"Pretendents"]
[null,null,"Projekta iesniedzēja reģ. Nr./  personas kods"]
[null,null,"Klienta numurs"]
[null,null,"Adrese korespondencei (adrese, pasta indekss)"]
[null,null,"Projekta īstenošanas vieta (adrese, pasta indekss)"]
[null,null,"Projekta vadītājs"]
[null,null,"Kontakttālruņa numurs, e-pasta adrese"]
[]
[null,null,"Projekta nosaukums",null,"Sabiedriskā centra izveide"]
[null,null,"Projekta Nr."]

{"sheet":"B. Info par uzn","index":1,"n_rows":70,"n_cols":14,"rows_kept":70,"cut":false,"hidden":true,"merged":[[55,7,55,8],[54,1,54,3],[55,1,55,3],[54,4,54,6],[72,3,72,4],[55,4,55,6],[56,0,56,13],[70,7,70,8],[28,0,28,10],[31,0,31,10],[33,8,33,10],[32,0,32,13],[33,6,33,7],[30,0,30,10],[29,11,29,13],[49,0,49,12],[53,9,53,10],[61,0,62,11],[58,1,58,3],[60,0,60,13],[52,0,52,13],[53,12,53,13],[53,1,53,3],[55,12,55,13],[69,0,69,13],[67,7,67,8],[68,7,68,8],[68,5,68,6],[67,1,67,2],[68,9,68,10],[67,3,67,4],[68,3,68,4],[72,7,72,8],[71,9,71,10],[68,1,68,2],[67,5,67,6],[70,9,70,10],[71,7,71,8],[71,1,71,2],[67,9,67,10],[72,5,72,6],[66,5,66,6],[64,1,64,2],[64,9,64,10],[58,9,58,10],[66,1,66,2],[66,7,66,8],[66,9,66,10],[57,1,57,3],[57,4,57,6],[59,1,59,3],[58,7,58,8],[59,7,59,8],[59,4,59,6],[48,0,48,12],[72,9,72,10],[70,1,70,2],[72,1,72,2],[70,3,70,4],[71,3,71,4],[58,12,58,13],[70,5,70,6],[71,5,71,6],[55,9,55,10],[57,7,57,8],[58,4,58,6],[54,9,54,10],[63,0,63,13],[59,9,59,10],[54,12,54,13],[57,12,57,13],[59,12,59,13],[57,9,57,10],[66,3,66,4],[64,3,64,4],[64,5,64,6],[64,7,64,8],[65,0,65,13],[37,1,37,5],[0,0,0,16383],[2,0,2,13],[30,11,30,13],[24,11,24,13],[26,11,26,13],[27,11,27,13],[1,0,1,13],[23,0,23,13],[25,11,25,13],[29,0,29,10],[27,0,27,10],[34,6,34,7],[3,0,22,13],[24,0,24,10],[26,0,26,10],[25,0,25,10],[28,11,28,13],[34,1,34,5],[31,11,31,13],[34,8,34,10],[33,1,33,5],[38,1,38,5],[35,0,35,13],[36,1,36,5],[36,6,36,11],[46,0,46,13],[54,7,54,8],[53,7,53,8],[50,0,50,13],[47,0,47,13],[51,12,51,13],[51,9,51,10],[51,7,51,8],[51,4,51,6],[51,1,51,3],[53,4,53,6],[39,1,39,11],[45,1,45,11],[44,1,44,11],[43,1,43,11],[42,1,42,11],[41,1,41,11],[40,1,40,11],[37,6,37,10],[38,6,38,10]]}
["B.   INFORMĀCIJA PAR ATBALSTA PRETENDENTU UZ PROJEKTA IESNIEGUMA IESNIEGŠANAS MĒNEŠA PIRMO DATUMU:"]
["B.1. Darbības apraksts"]
["Pašreizējās darbības apraksts "]
[]
[]
[]
[]
[]
[]
[]
[]
[]
[]
[]
[]
[]
[]
[]
[]
[]
[]
[]
[]
["B.2. Atbalsta pretendentu raksturojošie radītāji "]
["Iedzīvotāju skaits, kuriem ir pieejami esošie pakalpojumi, projekta īstenošanas vietā (skaits vai neattiecas)"]
["Esošo publisko intereneta punktu pieejamība (objektu skaits, kur ir publiski pieejami interneta resursi;  skaits vai neattiecas) "]
["Cilvēku skaits, kurus var vienlaicīgi apkalpot esošajos publisko internetu punktos  (skaits vai neattiecas)"]
["Pašvaldības valdījumā esošo saieta namu, brīvā laika pavadīšanas, sporta un kultūras objektu skaits  (skaits vai neattiecas)"]
["Pašvaldības valdījumā esošo saieta namu, brīvā laika pavadīšanas, sporta un kultūras objektu platība, kv.m.  (vai neattiecas)"]
["Pašvaldības ceļu garums, km (vai neattiecas)"]
["Esošo energoapgādes sistēmu saražotā siltumenerģija, GWh (vai neattiecas)"]
["Mājsaimniecības lietotāju skaits, kuri pērk un izlieto siltumenerģiju savā mājsaimniecībā pašu vajadzībām   (skaits vai neattiecas)"]
["B.3.  Teritorijas attīstības indekss un rangs pašvaldību grupai"]
["Nr.","Administratīvo teritoriju un teritoriālo vienību klasifikatora kods",null,null,null,null,"Rajons",null,"Pagasts, novads",null,null,"Teritorijas attīstības indekss","Rangs","Grupa"]
[]
["B.4.  Pašvaldības izveidošanas datums"]
["Nr.","Nosaukums",null,null,null,null,"Izveidošanās laiks"]
[1,null,null,null,null,null,"līdz 2006. Gada 1. jūlijam"]
[2,null,null,null,null,null,"pēc 2006. Gada 1. jūlijam"]
[null,"Vietējās pašvaldības administratīvajā teritorijā apvienotās pašvaldības pēc 2006.gada 1.jūlija"]
["2.1."]
["2.2."]
["2.3."]
["2.4."]
["2.5."]
["2.6."]
["B.5. Atbalsta  pretendenta saņemtais finansējums no Eiropas Savienības fondiem un valsts subsidētajiem investīciju projektiem"]
["Līdz šī projekta iesnieguma iesniegšanas brīdim, esmu saņēmis finansējumu no Eiropas Savienības fondiem un valsts subsidētajiem projektiem:"]
["Jā "]
["Nē "]
["B.5.1.  Realizētie projekti (SAPARD, ELVGF, ELFLA , ERAF, valsts subsidētie un pašvaldības  finansētie projekti, u.c.) aizpilda, ja ir saņemts finansējums:"]
["Nr.p.k.","Fonda nosaukums, atbalsta institūcijas nosaukums",null,null,"Projekta nosaukums un projekta Nr. ",null,null,"Projekta ieviešanas laiks (mm/gggg) – (mm/gggg)",null,"Publiskais finansējums (Ls)",null,"Vai projekta iesniegums ir saistīts ar citu realizēto projektu (Jā; Nē)","Saistītā projekta saturiskā saistība"]
["ES finansētie projekti"]
[]
[]
[]
["Citi projekti (pašvaldības finansētie, valsts subsidētie projekti u.tml.)   "]
[]
[]
[]
["B.6. Atbalsta pretendenta iesniegtie projekta iesniegumi  Eiropas Savienības fondos, valsts subsidētajās un pašvaldības finansētajās programmās (informācija par projektiem, kuri vēl nav realizēti)"]
["Līdz šī projekta iesnieguma iesniegšanas brīdim, esmu iesniedzis projekta iesniegumu atbalsta saņemšanai no Eiropas Savienības fondiem, valsts subsidētajiem un pašvaldības finansētajiem projektiem? ",null,null,null,null,null,null,null,null,null,null,null,"Jā"]
[null,null,null,null,null,null,null,null,null,null,null,null,"Nē"]
["B.6.1. Atbalsta pasākumi, kuru ietvaros iesniegti projekta iesniegumi vērtēšanai"]
["Nr.p.k.","Fonda nosaukums, atbalsta institūcijas nosaukums",null,"Projekta nosaukums un projekta Nr. ",null,"Projekta ieviešanas stadija ( projekts pašlaik tiek ieviests; projekts iesniegts vērtēšanai)",null,"Projekta ieviešanas laiks (mm/gggg) – (mm/gggg)",null,"Attiecināmo izmaksu summa (Ls)",null,"Publiskais finansējums (Ls) ","Vai projekta iesniegums ir saistīts ar citu vērtēšanai iesniegto projekta iesniegumu (Jā; Nē)","Saistītā projekta saturiskā saistība"]
["ES finansētie projekti "]
[]
[]
[]
["Citi projekti (pašvaldības finansētie, valsts subsidētie projekti u.tml.)   "]

{"sheet":"A.Informācija par pretendentu ","index":2,"n_rows":44,"n_cols":9,"rows_kept":44,"cut":false,"hidden":false,"merged":[[13,0,13,8],[2,0,2,8],[3,0,9,8],[0,0,0,8],[1,0,1,8],[26,7,27,7],[26,8,27,8],[14,0,15,6],[26,6,27,6],[26,0,27,0],[26,1,27,1],[26,2,27,2],[26,3,27,3],[26,4,27,4],[26,5,27,5],[23,0,23,7],[19,0,19,7],[28,0,28,8],[29,0,29,8],[30,0,30,3],[31,0,36,0],[31,1,31,3],[31,8,36,8],[32,1,32,3],[33,1,33,3],[34,1,34,3],[35,1,35,3],[43,0,43,8],[36,1,36,3],[37,0,42,0],[37,1,37,3],[38,1,38,3],[39,1,39,3],[40,1,40,3],[41,1,41,3],[42,1,42,3]]}
["A. INFORMĀCIJA PAR PRETENDENTU PROJEKTA IESNIEGUMA IESNIEGŠANAS MĒNEŠA PIRMAJĀ DATUMĀ"]
["A.1. Darbības apraksts"]
["Pašreizējās darbības apraksts "]
["Atbalsta pretendentam jāsagatavo īss pašreizējās darbības apraksts, tajā iekļaujot šādu informāciju:\n• Atbalsta pretendenta vēstures apraksts brīvā formā\n• Atbalsta pretendenta pamatdarbības virzieni, to īss apraksts \n• Galvenās atbalsta pretendenta šā brīža darbības\n• Atbalsta pretendenta īstermiņa un ilgtermiņa mērķi:  \n- īstermiņa mērķi ir atbalsta pretendenta mērķi laika periodam, kas nav ilgāks par vienu gadu; \n- ilgtermiņa mērķi ir atbalsta pretendenta mērķi laika periodam, kas ir ilgāks par vienu gadu \n• Pieredze līdzīgu projektu vadīšanā"]
[]
[]
[]
[]
[]
[]
[]
[]
[]
["A.2. Pretendenta saņemtais publiskais finansējums un (vai) iesniegtie projektu iesniegumi citās iestādēs Eiropas Savienības fondu (ERAF u.c.) un valsts un pašvaldības finansētajos investīciju pasākumos, ja šis finansējums ir saistīts ar projektā plānoto investīciju."]
["Līdz šī projekta iesnieguma iesniegšanas brīdim pretendents ir saņēmis publisko finansējumu un (vai) ir iesniedzis projekta iesniegumu par citiem Eiropas Savienības fondu un valsts un pašvaldības finansētajiem investīciju pasākumiem, un šis finansējums ir saistīts ar projektā plānoto investīciju.",null,null,null,null,null,null,"Jā"]
[null,null,null,null,null,null,null,"Nē"]
[]
["A.2.1. Ja atbilde ir \"Jā\", lūdzu, sniegt informāciju par projektiem "]
["Nr.p.k.","Fonda nosaukums, atbalsta institūcijas nosaukums","Projekta nosaukums un projekta Nr. ","Projekta īstenošanas stadija (saņemts finansējums; projekts pašlaik tiek īstenots; projekts iesniegts vērtēšanai)","Projekta īstenošanas laiks (mm/gggg) līdz (mm/gggg)","Attiecināmo izmaksu summa (EUR)","Publiskais finan-sējums (EUR) ","Saistītā projekta saturiskā saistība"]
["Eiropas Savienības finansētie projekti "]
[]
[]
[]
["Citi projekti (valsts un pašvaldības finansētie projekti u.tml.)"]
[]
[]
[]
[]
["A.3. Pretendenta pamatlīdzekļi*"]
["Pamatlīdzekļi"]
["Nosaukums, tehnikas un iekārtas marka vai modelis",null,null,null,"Īpašumā, skaits","Nomā esošās, skaits","Izlaides vai izveidošanas gads","Jauda, ietilpība/ mērvienība","Ja tehnika vai iekārta tiks papildināta vai aizstāta, atzīmēt konkrēto"]
["Ēkas un būves",null,null,null,null,null,null,null,"X"]
[]
[]
[]
[]
[]
["Tehnika un iekārtas"]
[]
[]
[]
[]
[]
["* Ja pretendenta īpašumā vai nomā esošo pamatlīdzekļu skaits ir ļoti liels, projekta iesnieguma pielikumā iespējams pievienot atsevišķu pamatlīdzekļu sarakstu. Ja pretendents ir vietējā pašvaldība, tā sniedz informāciju tikai par ēkām un būvēm, tehniku un iekārtām, kam ir saistība ar projektu."]

{"sheet":"B.Projekts","index":3,"n_rows":153,"n_cols":21,"rows_kept":153,"cut":false,"hidden":false,"merged":[[54,0,54,13],[55,0,55,13],[56,0,56,8],[57,0,57,8],[56,9,56,13],[57,9,57,13],[28,1,28,6],[31,0,34,13],[84,6,86,7],[39,0,39,13],[40,0,40,13],[65,0,65,8],[64,9,64,13],[29,0,29,12],[62,0,62,8],[64,0,64,8],[37,0,37,13],[61,9,61,13],[66,9,66,13],[66,0,66,8],[69,8,69,9],[69,10,69,11],[28,9,28,13],[69,1,69,6],[69,12,69,13],[70,0,70,13],[75,1,75,6],[75,8,75,9],[75,10,75,11],[75,12,75,13],[137,0,138,9],[134,11,134,13],[128,0,128,13],[122,0,122,3],[134,0,134,10],[131,0,131,10],[119,0,119,6],[119,12,119,13],[131,11,131,13],[100,0,100,3],[74,1,74,6],[74,8,74,9],[74,10,74,11],[74,12,74,13],[76,0,76,13],[77,1,77,6],[77,8,77,9],[77,10,77,11],[60,9,60,13],[84,5,87,5],[38,0,38,13],[93,12,93,13],[42,0,42,13],[84,4,87,4],[84,13,87,13],[61,0,61,8],[65,9,65,13],[63,0,63,13],[62,9,62,13],[84,9,87,9],[91,0,91,3],[92,0,92,3],[71,1,71,6],[71,8,71,9],[71,10,71,11],[71,12,71,13],[77,12,77,13],[72,1,72,6],[72,8,72,9],[72,10,72,11],[72,12,72,13],[73,0,73,13],[152,0,152,13],[153,0,153,13],[99,0,99,13],[101,0,101,3],[104,0,104,13],[132,11,132,13],[103,0,103,6],[125,0,125,6],[124,0,124,6],[147,0,147,13],[141,0,141,13],[142,0,144,13],[138,12,138,13],[137,12,137,13],[137,10,137,11],[138,10,138,11],[133,11,133,13],[111,0,111,3],[103,12,103,13],[106,0,106,3],[102,0,102,3],[140,0,140,13],[116,0,116,3],[117,0,117,3],[0,0,0,13],[1,0,1,13],[3,0,3,9],[4,0,4,9],[2,0,2,9],[2,10,2,13],[4,10,4,11],[4,12,4,13],[3,10,3,11],[3,12,3,13],[5,0,5,12],[17,10,17,11],[27,9,27,13],[23,0,23,13],[26,1,26,6],[17,12,17,13],[16,10,16,11],[20,0,21,13],[7,0,7,13],[24,9,25,13],[8,10,8,11],[24,0,25,0],[24,7,24,8],[24,1,25,6],[8,0,9,9],[9,12,9,13],[12,0,13,13],[27,1,27,6],[9,10,9,11],[15,0,15,13],[26,9,26,13],[16,0,17,9],[8,12,8,13],[40,243,40,246],[83,0,83,13],[59,0,59,13],[115,0,115,3],[151,0,151,13],[133,0,133,10],[148,0,148,13],[113,0,113,6],[107,0,107,3],[98,0,98,5],[98,12,98,13],[132,0,132,10],[121,0,121,3],[94,0,94,13],[88,12,88,13],[88,0,88,3],[84,10,87,10],[84,11,87,11],[41,0,41,13],[90,0,90,3],[96,0,96,3],[118,12,118,13],[123,0,123,3],[60,0,60,8],[125,16,126,18],[125,15,126,15],[125,19,126,19],[125,20,126,20],[124,12,125,13],[89,0,89,13],[108,0,108,6],[97,0,97,3],[121,16,121,18],[112,16,115,20],[95,0,95,3],[116,15,118,20],[93,0,93,6],[114,0,114,13],[122,16,122,18],[123,16,123,18],[113,12,113,13],[112,0,112,3],[105,0,105,3],[118,0,118,6],[110,0,110,3],[120,0,120,13],[108,12,108,13],[109,0,109,13],[75,17,75,20],[76,16,76,20],[77,17,77,20],[84,8,87,8],[84,12,87,12],[78,1,78,6],[78,8,78,9],[78,10,78,11],[78,12,78,13],[79,0,79,13],[80,1,80,6],[80,8,80,9],[84,0,87,3],[80,10,80,11],[80,12,80,13],[72,17,72,20],[73,16,73,20],[74,17,74,20],[69,17,69,20],[70,16,70,20],[71,17,71,20],[66,17,66,20],[67,16,67,20],[68,17,68,20],[43,0,43,13],[44,0,44,11],[44,12,44,13],[52,0,52,11],[52,12,52,13],[45,0,45,11],[45,12,45,13],[46,0,46,11],[46,12,46,13],[47,0,47,11],[47,12,47,13],[48,0,48,11],[48,12,48,13],[49,0,49,11],[49,12,49,13],[50,0,50,11],[50,12,50,13],[51,0,51,11],[51,12,51,13]]}
["B. INFORMĀCIJA PAR PROJEKTU"]
["B.1.Darbības un to ieguldījums LAP mērķa virzienos"]
["Darbība",null,null,null,null,null,null,null,null,null,"Mērķa virziens"]
["A – Vietējās teritorijas, tostarp dabas un kultūras objektu, sakārtošana, lai uzlabotu pakalpojumu pieejamību, kvalitāti un sasniedzamību",null,null,null,null,null,null,null,null,null,"6B*"]
["B – Sabiedrisko aktivitāšu (tostarp apmācības un interešu klubu, sociālās aprūpes vietu, kultūras, vides aizsardzības, sporta un citu brīvā laika pavadīšanas aktivitāšu) dažādošana ",null,null,null,null,null,null,null,null,null,"6B*"]
["* LAP mērķa virziens „Sekmēt vietējo attīstību lauku apvidos”."]
[]
["B.2. Projekta ietekme uz klimata pārmaiņām"]
["Projekta īstenošana sekmē mērķu sasniegšanu saistībā ar klimata pārmaiņām ",null,null,null,null,null,null,null,null,null,"Jā"]
[null,null,null,null,null,null,null,null,null,null,"Nē"]
[]
["B.2.1. Ja atbilde ir „Jā”, lūdzu, aprakstīt, kādā veidā"]
["Raksturo projekta ietekmi uz klimata pārmaiņām. Jomas, kuras projekta īstenošanas rezultātā sekmēs mērķu sasniegšanu saistībā ar klimatu pārmaiņām, minētas šīs veidlapas 1. pielikumā. "]
[]
[]
["B.3. Projekta īstenošanas radītie jauninājumi"]
["Vai projekta īstenošana ieviesīs jauninājumus sabiedrības virzītas vietējās attīstības stratēģiju īstenošanas teritorijā? ",null,null,null,null,null,null,null,null,null,"Jā"]
[null,null,null,null,null,null,null,null,null,null,"Nē"]
[]
["B.3.1. Ja atbilde ir „Jā”, lūdzu, aprakstīt, kādus jauninājumus"]
[]
[]
[]
["B.4. Pēc projekta īstenošanas sasniedzamie rādītāji:"]
["Nr.p.k","Rezultātu indikatori - atbilstošie– vietējās rīcības grupas sabiedrības virzītā vietējā attīstības stratēģijā minētie sasniedzamie rādītāji",null,null,null,null,null,"Pirms projekta iesnieguma iesniegšanas",null,"Sagaidāmā vērtība pēc projekta īstenošanas, apraksts (ja nepieciešams)"]
[null,null,null,null,null,null,null,"Mērvienība","Vērtība"]
[]
[]
[]
[]
["B.5. Projekta mērķis:"]
["Šeit jānorāda atbalsta pretendenta individuālais projekta mērķis, kas ir konkrēts, izmērāms, reāli sasniedzams noteiktā laikā. Tas ir galvenais uzdevums, kas sniedz priekšstatu par to, ko atbalsta pretendents vēlas paveikt projekta laikā un kā sasniegt projekta rezultātu. Projekta mērķim ir jābūt uzrakstītam īsi un konkrēti, paskaidrojot, ko ir plānots sasniegt, realizējot šo projektu. Projekta mērķim jāveicina MK noteikumu Nr.590 2.2. apakšpunktā minētā mērķa un SVVA stratēģijā noteiktā mērķa sasniegšanu. "]
[]
[]
[]
[]
["B.6. Projekta apraksts"]
["B.6.1. Projekta apraksts un tā nepieciešamības pamatojums (tostarp darbību, investīciju apraksts un nepieciešamības pamatojums, tā ilgtspējas apraksts)"]
[" Atbalsta pretendents sniedz informāciju par projekta priekšvēsturi, vispārīgu aprakstu par projektu un pamato projekta atbilstību sabiedriskā labuma projekta statusam. Skaidri  apraksta galvenās problēmas, ko projektam ir jāatrisina, un kā projekts sniegs ieguldījumu problēmas atrisināšanā.  Apraksta projektā  plānotās aktivitātes un norāda, kā tieši katra attiecināmajās izmaksās iekļautā pozīcija ir saistīta un sekmē projekta mērķa sasniegšanu.                                                                                   Projekta ilgtspējas apraksts. Projekta ilgtspēju var ietekmēt dažādi faktori, būtiskākie no tiem ir:\n• institucionālā darba un vadības kvalitāte – projekta īstenotāja rīcībā ir nepieciešamās struktūras un\npersonālresursi, lai turpinātu īstenot projekta aktivitātes ilglaicīgi;\n• ekonomiskie un finanšu aspekti - projekta īstenotāja rīcībā ir nepieciešamie finanšu resursi, lai\nturpinātu īstenot projekta aktivitātes ilglaicīgi.\n \n"]
["B.6.2. Projekta īstenošanas laika grafiks"]
["Norāda termiņus, kādos tiks īstenotas projektā plānotās aktivitātes, ievērojot projekta uzsākšanas un īstenošanas termiņus.                                                                                                Projekta uzsākšanas termiņš - Atbalsta pretendents saņem Dienesta lēmumu aptuveni 4 mēnešu laikā no VRG izsludinātās kārtas noslēgšanās datuma (ja projekta iesnieguma izvērtēšanai nepieciešams papildu laiks faktu pārbaudei, lēmuma pieņemšanas termiņš var tikt pagarināts). Atbalsta saņēmējs projektu sāk īstenot sešu mēnešu laikā pēc dienas, kad stājies spēkā lēmums par projekta iesnieguma apstiprināšanu. Ja projektā paredzēta būvju būvniecība, pārbūve, ierīkošana, novietošana vai atjaunošana, atbalsta saņēmējs projektu sāk īstenot deviņu mēnešu laikā pēc lēmuma par projekta apstiprināšanu spēkā stāšanās.                                                                                                                                                                                    Projekta īstenošanas termiņš:\n    Ja tiek veikta būvniecība, teritorijas labiekārtošana – 2 gadi no Lauku atbalsta dienesta lēmuma pieņemšanas par projekta iesnieguma apstiprināšanu;\n    Ja projektu īsteno Noteikumu Nr.590 5.2.2. apakšpunktā minētajā darbībā  \"Sabiedrisko aktivitāšu (tostarp apmācību un interešu klubu, sociālās aprūpes vietu, kultūras, vides aizsardzības, sporta un citu brīvā laika pavadīšanas veidu) dažādošanai\" un projektā paredzēta attiecināmo izmaksu pozīcija “Ar projektu saistītā personāla atalgojuma un darbības nodrošināšana” izmaksas – 2 gadi no Lauku atbalsta dienesta lēmuma pieņemšanas par projekta iesnieguma apstiprināšanu;\n    Pārējiem projektiem projektu īstenošanas termiņš ir 1 gads no Lauku atbalsta dienesta lēmuma pieņemšanas par projekta iesnieguma apstiprināšanu.     \n"]
["B.6.3. Projekta finansēšanas apraksts (finanšu līdzekļu avoti, projekta vadībai nepieciešamie resursi)"]
["Atbalsta pretendents detalizēti apraksta, kā veidojas projekta realizācijai nepieciešamais finansējums un kādi ir finansēšanas avoti. Atbalsta pretendentam ir jābūt pieejamiem finansējuma līdzekļiem, lai nodrošinātu projekta īstenošanas nepārtrauktību (norāda, vai būs paša līdzekļi, aizņēmums). Ja atbalsta pretendents ir biedrība, nodibinājums vai reliģiska organizācija, projekta īstenošanai var sniegt  rēķinu priekšapmaksas pieprasījumu. Rēķinu priekšapmaksas pieprasījuma gadījumā Dienests veic priekšapmaksu, pamatojoties uz iesniegtiem rēķiniem, publiskā finansējuma apmērā. "]
["B.6.4.Projekta īstenošanas joma"]
["Sports"]
["Kultūra "]
["Sociālā aprūpe"]
["Interešu apmācību klubi"]
["Vides aizsardzība"]
["Teritorijas labiekārtošana"]
["Reliģija, baznīcas"]
["Mācības"]
["Cita (norāda, kāda)"]
[]
["“B.6.5. Projekta īstenošanas darbības virziens (attiecas, ja projektā īsteno noteikumu 51. apakšpunktā minēto darbību)"]
["Projekts tiks īstenots šādā nozarē"]
["NACE 2. red. klasifikācijas 4 zīmju ciparu kods",null,null,null,null,null,null,null,null,"55.20"]
["NACE 2. red. klasifikācijas nosaukums (atbilstoši norādītajam kodam)”",null,null,null,null,null,null,null,null,"Izmitināšana viesu mājās un cita veida īslaicīga apmešanās vietās"]
[]
["B.7. Projekta īstenošanas vieta"]
["Pilsēta"]
["Novads, pagasts"]
["Īstenošanas adrese"]
["Projekta īstenošanas vietas kadastra numurs:"]
["zemei (ja notiek būvniecība, būves pārbūve, teritorijas labiekārtošana, tiek uzstādītas stacionārās iekārtas u.c.)"]
["Būvēm, kurās tiek uzstādītas stacionārās iekārtas vai kuras tiek pārbūvētas, ierīkotas vai atjaunotas u.c."]
["Pārvietojamai tehnikai un citiem pamatlīdzekļiem norāda to atrašanās vietas kadastra numuru"]
[]
["B.8. Projekta laikā plānots iegādāties šādus pamatlīdzekļus"]
["Nr.","Nosaukums, modelis vai marka",null,null,null,null,null,"Skaits","Ja pamatlīdzeklis papildina vai aizstāj esošos pamatlīdzekļus, norādīt pamatlīdzekļa vienības Nr. no A.3. tabulas (ja attiecas)",null,"Jauda, ražība, celtspēja (ietilpība/ mērvienība)",null,"Jauda, ražība, celtspēja % pret aizstājamo vienību vai vienībām (ja piemērojams)"]
["Pamatlīdzeklis, kas aizstās esošos pamatlīdzekļus (jābūt vismaz par 25 % lielākai jaudai, ražībai vai celtspējai)"]
[]
[]
["Pamatlīdzeklis, kas papildina esošos pamatlīdzekļus, kuri ir vecāki par 10 gadiem"]
[]
[]
["Pamatlīdzeklis, kas būtiski mainīs ražošanas vai tehnoloģijas raksturu"]
[]
[]
["Cits (programmnodrošinājums u. c.)"]
[]
[]
[]
["B.9 Projekta iesnieguma kopējās un attiecināmās izmaksas"]
["Izmaksu pozīcijas sadalījumā pa plānotajām projekta darbībām un projekta posmiem",null,null,null,"mērvienība (m3/m2/glāb/m/kompl)","Vienību skaits","Kopā izmaksas, EUR",null,"Attiecināmās izmaksas, EUR**","Atbalsta intensitāte, %","Publiskais finansējums, EUR","Privātais finansējums, EUR","Maksājuma pieprasījuma iesniegšanas datums (DD.MM.GGGG.)","Izmaksu atbilstība darbībām (A, B)*"]
[]
[]
[null,null,null,null,null,null,"ar PVN","bez PVN"]
[1,null,null,null,2,3,4,5,6,7,8,9]
["1. Jaunu pamatlīdzekļu iegāde un programmnodrošinājuma iegāde un uzstādīšana"]
["Pamatlīdzeklis \"A\"",null,null,null,"gab",1,{"$f":"H91*121/100","v":4840},4000,4840,90,{"$f":"I91*J91/100","v":4356},{"$f":"I91-K91","v":484},"15.09.2016","B"]
["Pamatlīdzeklis \"B\"",null,"-",null,"gab",1,{"$f":"H92*121/100","v":1210},1000,1210,90,{"$f":"I92*J92/100","v":1089},{"$f":"I92-K92","v":121},"15.09.2016","B"]
[null,null,"-",null,"-","-","-",0,0,0,{"$f":"I93*J93/100","v":0},{"$f":"I93-K93","v":0}]
["Pamatlīdzekļu iegādes, uzstādīšanas izmaksas, kopā",null,null,null,null,null,null,{"$f":"SUM(H91:H93)","v":5000},{"$f":"SUM(I91:I93)","v":6050},"X",{"$f":"SUM(K91:K93)","v":5445},{"$f":"SUM(L91:L93)","v":605},"X"]
[" 2. Būves būvniecības, pārbūves, ierīkošanas, novietošanas, atjaunošanas, restaurācijas un teritorijas labiekārtošanas izmaksas"]
["Būvniecība \"C\" ",null,"-",null,"m2",50,{"$f":"H96*121/100","v":3630},3000,3630,90,{"$f":"I96*J96/100","v":3267},{"$f":"I96-K96","v":363},"15.09.2016","B"]
[null,null,"-",null,"-","-","-","-","-","-","-","-"]
[null,null,"-",null,"-","-","-","-","-","-","-","-"]
["Būves būvniecības, pārbūves, ierīkošanas, novietošanas, atjaunošanas, restaurācijas un teritorijas labiekārtošanas izmaksas, kopā ",null,null,null,null,null,null,{"$f":"SUM(H96:H98)","v":3000},{"$f":"SUM(I96:I98)","v":3630},"X",{"$f":"SUM(K96:K98)","v":3267},{"$f":"SUM(L96:L98)","v":363},"X"]
["3. Būvmateriālu iegāde"]
[null,null,"-",null,"-","-","-","-","-","-","-","-"]
[null,null,"-",null,"-","-","-","-","-","-","-","-"]
[null,null,"-",null,"-","-","-","-","-","-","-","-"]
["Izmaksas būvmateriālu iegādei, kopā",null,null,null,null,null,null,{"$f":"SUM(H101:H103)","v":0},{"$f":"SUM(I101:I103)","v":0},"X",{"$f":"SUM(K101:K103)","v":0},{"$f":"SUM(L101:L103)","v":0},"X"]
["4. Mācību izmaksas"]
[null,null,"-",null,"-","-","-","-","-","-","-","-"]
[null,null,"-",null,"-","-","-","-","-","-","-","-"]
[null,null,"-",null,"-","-","-","-","-","-","-","-"]
["Mācību izmaksas, kopā",null,null,null,null,null,null,{"$f":"SUM(H106:H108)","v":0},{"$f":"SUM(I106:I108)","v":0},"X",{"$f":"SUM(K106:K108)","v":0},{"$f":"SUM(L106:L108)","v":0},"X"]
["5.Sabiedrisko attiecību izmaksas, kas nepieciešamas vietas potenciāla un pievilcības veidošanai"]
[null,"-",null,"-","-","-"]
[null,"-",null,"-","-","-","-","-","-","-","-","-"]
[null,"-",null,"-","-","-","-","-","-","-","-","-"]
["Sabiedrisko attiecību izmaksas, kopā",null,null,null,null,null,null,{"$f":"SUM(H111:H113)","v":0},{"$f":"SUM(I111:I113)","v":0},"X",{"$f":"SUM(K111:K113)","v":0},{"$f":"SUM(L111:L113)","v":0},"X"]
["6. Vispārējās izmaksas "]
["Projekta iesnieguma sagatavošana","-",null,"-","gab",1,{"$f":"400*121/100","v":484},400,484,90,{"$f":"I116*90/100","v":435.6},{"$f":"I116-K116","v":48.399999999999977},"15.09.2016","A"]
[" ","-",null,"-","-","-","-","-","-","-","-","-",null,null,null,"!!!Lai pārliecinātos, vai netiek pārsniegti % ierobežojumi vispārīgajām izmaksām,  personālā atalgojumam un darbības nodrošināšanai, aizpildiet šo tabulu:"]
[null,"-",null,"-","-","-","-","-","-","-","-","-"]
["Vispārējās izmaksas, kopā",null,null,null,null,null,null,{"$f":"SUM(H116:H118)","v":400},{"$f":"SUM(I116:I118)","v":484},"X",{"$f":"SUM(K116:K118)","v":435.6},{"$f":"SUM(L116:L118)","v":48.399999999999977},"X"]
["KOPĀ (1. līdz6. sadaļas izmaksas)",null,null,null,null,null,null,{"$f":"H119+H114+H109+H104+H99+H94","v":8400},{"$f":"I119+I114+I109+I104+I99+I94","v":10164},"X",{"$f":"K119+K114+K109+K104+K99+K94","v":9147.6},{"$f":"L119+L114+L109+L104+L99+L94","v":1016.4},"X",null,null,null,null,null,null,"Attiecināmas izmaksas, EUR ","%"]
["7 Personāla atalgojuma un darbības nodrošināšanas izmaksas",null,null,null,null,null,null,null,null,null,null,null,null,null,null,1,"Jaunu pamatlīdzekļu iegāde un uzstādīšana",null,null,{"$f":"I94","v":6050}]
["Personāla atalgojums ",null,"-",null,"gab",6,1524,1524,1524,90,{"$f":"I122*90/100","v":1371.6},{"$f":"I122-K122","v":152.40000000000009},"15.09.2016","A",null,2,"Būves būvniecības, pārbūves, ierīkošanas, novietošanas, atjaunošanas un restaurācijas izmaksas",null,null,{"$f":"I99","v":3630}]
[null,null,"-",null,"-","-",null,null,null,null,null,null,null,null,null,3,"Būvmateriālu iegāde",null,null,{"$f":"I104","v":0}]
[null,null,"-",null,"-","-","-","-","-","-","-","-",null,null,null,4,"Mācību izmaksas ",null,null,{"$f":"I109","v":0}]
["Personāla atalgojuma un darbības nodrošināšanas izmaksas, kopā ",null,null,null,null,null,null,{"$f":"SUM(H122:H124)","v":1524},{"$f":"SUM(I122:I124)","v":1524},"X",{"$f":"SUM(K122:K124)","v":1371.6},{"$f":"SUM(L122:L124)","v":152.40000000000009},"X",null,null,5,"Sabiedrisko attiecību izmaksas ",null,null,0,{"$f":"(T125*100)/(T121+T122+T123)","v":0}]
["KOPĀ ",null,null,null,null,null,null,{"$f":"H125+H114+H109+H104+H99+H94+H119","v":9924},{"$f":"I125+I114+I109+I104+I99+I94+I119","v":11688},"X",{"$f":"K125+K114+K109+K104+K99+K94+K119","v":10519.2},{"$f":"L125+L114+L109+L104+L99+L94+L119","v":1168.8000000000002},null,null,null,6,"Vispārējās izmaksas",null,null,{"$f":"I119","v":484},{"$f":"T126*100/(T121+T122+T123+T124)","v":5}]
[]
["*Atbilstoši B.1. sadaļai",null,null,null,null,null,null,null,null,null,null,null,null,null,null,7," Personāla atalgojuma un darbības nodrošināšanas izmaksas",null,null,{"$f":"I125","v":1524},{"$f":"(100*T128)/(T121+T122+T123+T124+T125+T126)","v":14.994096812278631}]
["** Attiecināms ir pievienotās vērtības nodoklis, ja nav tiesību to atskaitīt no valsts budžetā maksājamās nodokļa summas kā priekšnodokli normatīvajos aktos par pievienotās vērtības nodokli noteiktajā kārtībā.",null,null,null,null,null,null,null,null,null,null,null,null,null,null,null,"Kopā",null,null,{"$f":"SUM(T119:T128)","v":11688}]
[]
["B.10. Pārējās neattiecināmās izmaksas"]
["Neattiecināmo izmaksu pozīcijas",null,null,null,null,null,null,null,null,null,null,"Summa, EUR"]
["Telpaugu iegāde ",null,null,null,null,null,null,null,null,null,null,100]
[]
["KOPĀ"]
[]
["B.11. Rēķinu priekšapmaksas pieprasījums (ja atbalsta pretendents ir biedrība, nodibinājums vai reliģiska organizācija)"]
["Projekta īstenošanai plānots iesniegt rēķinu priekšapmaksas pieprasījumu",null,null,null,null,null,null,null,null,null,"Jā"]
[null,null,null,null,null,null,null,null,null,null,"Nē"]
[]
["B.12. Projekta ietekmes uz apkārtējo vidi apraksts"]
["Projekta ietekmes uz apkārtējo vidi apraksts saskaņā ar Latvijas Republikas normatīvajiem aktiem"]
["Noteikumi N.598 1.pielikuma \"Atbalsta pretendenta deklarācija\" 20. punktā atbalsta pretendents apliecina, ka projekta īstenošanas laikā ievēros normatīvajos aktos noteiktos vides aizsardzības noteikumus un prasības atbilstoši Eiropas Savienības un Latvijas Republikas normatīvajos aktos par ietekmi uz vidi.  Raksturo projekta ietekmi uz apkārtējo vidi. Atbalsta pretendentam jānorāda, kādā veidā atbalsta pretendents  nodrošinās LR tiesību aktu un Padomes Regulas (EK) Nr. 1305/2013 par atbalstu  lauku attīstībai no Eiropas lauksaimniecības fonda lauku attīstībai (ELFLA) prasību izpildi attiecībā uz vides aizsardzību."]
[]
[]
[]
["B.13 Projekta informācijas un publicitātes pasākumi"]
["Apraksts"]
["Projekta iesniedzējs apraksta darbības (plakātu un informatīvu plākšņu izvietošana, informatīvo materiālu\nizdošana, publicitātes pasākumu organizēšana u.c.), kas tiks veiktas, lai nodrošinātu informāciju un publicitāti par\nprojekta ieviešanu un sasniegtajiem rezultātiem.\nAtbalsta pretendentam, plānojot projekta informācijas un publicitātes pasākumus, jāņem vērā Vizuālās identitātes vadlīnijas (2014.-2020. gadam)  - http://www.lad.gov.lv/lv/atbalsta-veidi/projekti-un-investicijas/vizualas-identitates-vadlinijas-%282014-2020-gadam%29/"]
[]
[]
["B.14. Papildus informācija, kas sniedzama saskaņā ar sabiedrības virzītu vietējās attīstības stratēģiju"]
["Apraksts"]

{"sheet":"B.9 piemēri","index":4,"n_rows":106,"n_cols":14,"rows_kept":106,"cut":false,"hidden":false,"merged":[[0,12,0,13],[52,12,52,13],[105,0,105,10],[105,11,105,13],[100,0,100,13],[101,0,101,10],[101,11,101,13],[102,0,102,10],[95,0,95,5],[95,12,96,13],[89,0,89,5],[89,12,89,13],[93,0,93,3],[94,0,94,3],[90,12,90,13],[91,0,91,13],[102,11,102,13],[103,0,103,10],[103,11,103,13],[84,12,84,13],[85,0,85,13],[86,0,86,3],[87,0,87,3],[88,0,88,3],[92,0,92,3],[90,0,90,6],[69,0,69,5],[69,12,69,13],[70,0,70,13],[71,0,71,3],[72,0,72,3],[73,0,73,3],[84,0,84,5],[74,0,74,5],[74,12,74,13],[75,0,75,13],[76,0,76,3],[77,0,77,3],[78,0,78,3],[79,0,79,5],[79,12,79,13],[80,0,80,13],[81,0,81,3],[82,0,82,3],[83,0,83,3],[55,13,58,13],[59,0,59,3],[59,12,59,13],[64,0,64,5],[64,12,64,13],[65,0,65,13],[66,0,66,3],[67,0,67,3],[68,0,68,3],[10,0,10,5],[10,12,10,13],[11,0,11,13],[12,0,12,3],[13,0,13,3],[14,0,14,3],[1,10,4,10],[1,11,4,11],[6,0,6,13],[7,0,7,3],[8,0,8,3],[9,0,9,3],[1,12,4,12],[1,13,4,13],[5,0,5,3],[5,12,5,13],[1,0,4,3],[1,4,4,4],[1,5,4,5],[1,6,3,7],[1,8,4,8],[1,9,4,9],[21,0,21,13],[22,0,22,3],[23,0,23,3],[24,0,24,3],[20,0,20,5],[20,12,20,13],[15,0,15,5],[15,12,15,13],[16,0,16,13],[17,0,17,3],[18,0,18,3],[19,0,19,3],[30,0,30,5],[30,12,30,13],[31,0,31,13],[32,0,32,3],[33,0,33,3],[34,0,34,3],[25,0,25,5],[25,12,25,13],[26,0,26,13],[27,0,27,3],[28,0,28,3],[29,0,29,3],[41,0,41,5],[41,12,42,13],[35,0,35,5],[35,12,35,13],[37,0,37,13],[38,0,38,3],[39,0,39,3],[40,0,40,3],[36,0,36,6],[36,12,36,13],[42,0,42,6],[49,0,49,10],[49,11,49,13],[104,11,104,13],[96,0,96,6],[45,0,45,13],[46,0,46,10],[46,11,46,13],[47,0,47,10],[47,11,47,13],[48,0,48,10],[48,11,48,13],[55,0,58,3],[55,4,58,4],[55,5,58,5],[55,6,57,7],[55,8,58,8],[55,9,58,9],[55,10,58,10],[55,11,58,11],[60,0,60,13],[61,0,61,3],[62,0,62,3],[63,0,63,3],[55,12,58,12]]}
["B.9 Projekta iesnieguma kopējās un attiecināmās izmaksas (piemērs, ja PVN nav attiecināmās izmaksas)",null,null,null,null,null,null,null,null,null,null,null,"Piemērs Nr.1"]
["Izmaksu pozīcijas sadalījumā pa plānotajām projekta darbībām un projekta posmiem",null,null,null,"mērvienība (m3/m2/gab/m/kompl)","Vienību skaits","Kopā izmaksas, EUR",null,"Attiecināmās izmaksas, EUR","Atbalsta intensitāte, %","Publiskais finansējums, EUR","Privātais finansējums, EUR","Maksājuma pieprasījuma iesniegšanas datums (DD.MM.GGGG.)","Izmaksu atbilstība darbībām (A, B)*"]
[]
[]
[null,null,null,null,null,null,"ar PVN","bez PVN"]
[1,null,null,null,2,3,4,5,6,7,8,9]
["1. Jaunu pamatlīdzekļu iegāde un uzstādīšana"]
["Pamatlīdzeklis \"A\"",null,null,null,"gab",1,{"$f":"H8*121/100","v":4840},4000,4000,90,{"$f":"I8*90/100","v":3600},{"$f":"G8-K8","v":1240},"15.09.2016","A"]
["Pamatlīdzeklis \"B\"",null,"-",null,"gab",1,{"$f":"H9*121/100","v":1210},1000,1000,90,{"$f":"I9*90/100","v":900},{"$f":"G9-K9","v":310},"15.09.2016","A"]
[null,null,"-",null,"-","-","-","-","-","-","-","-"]
["Pamatlīdzekļu iegādes, uzstādīšanas izmaksas, kopā",null,null,null,null,null,{"$f":"SUM(G8:G10)","v":6050},{"$f":"SUM(H8:H10)","v":5000},{"$f":"SUM(I8:I10)","v":5000},"X",{"$f":"SUM(K8:K10)","v":4500},{"$f":"SUM(L8:L10)","v":1550},"X"]
[" 2. Būves būvniecības, pārbūves, ierīkošanas, novietošanas, atjaunošanas un restaurācijas izmaksas"]
[null,null,"-",null,"-","-","-","-","-","-","-","-"]
[null,null,"-",null,"-","-","-","-","-","-","-","-"]
[null,null,"-",null,"-","-","-","-","-","-","-","-"]
["Būves būvniecības, pārbūves, ierīkošanas, novietošanas, atjaunošanas un restaurācijas izmaksas, kopā ",null,null,null,null,null,{"$f":"SUM(G13:G15)","v":0},{"$f":"SUM(H13:H15)","v":0},{"$f":"SUM(I13:I15)","v":0},"X",{"$f":"SUM(K13:K15)","v":0},{"$f":"SUM(L13:L15)","v":0},"X"]
["3. Būvmateriālu iegāde"]
[null,null,"-",null,"-","-","-","-","-","-","-","-"]
[null,null,"-",null,"-","-","-","-","-","-","-","-"]
[null,null,"-",null,"-","-","-","-","-","-","-","-"]
["Izmaksas būvmateriālu iegādei, kopā",null,null,null,null,null,{"$f":"SUM(G18:G20)","v":0},{"$f":"SUM(H18:H20)","v":0},{"$f":"SUM(I18:I20)","v":0},"X",{"$f":"SUM(K18:K20)","v":0},{"$f":"SUM(L18:L20)","v":0},"X"]
["4. Mācību izmaksas"]
[null,null,"-",null,"-","-","-","-","-","-","-","-"]
[null,null,"-",null,"-","-","-","-","-","-","-","-"]
[null,null,"-",null,"-","-","-","-","-","-","-","-"]
["Mācību izmaksas, kopā",null,null,null,null,null,{"$f":"SUM(G23:G25)","v":0},{"$f":"SUM(H23:H25)","v":0},{"$f":"SUM(I23:I25)","v":0},"X",{"$f":"SUM(K23:K25)","v":0},{"$f":"SUM(L23:L25)","v":0},"X"]
["5.Sabiedrisko attiecību izmaksas, kas nepieciešamas vietas potenciāla un pievilcības veidošanai"]
[null,"-",null,"-","-","-","-","-","-","-","-","-"]
[null,"-",null,"-","-","-","-","-","-","-","-","-"]
[null,"-",null,"-","-","-","-","-","-","-","-","-"]
["Sabiedrisko attiecību izmaksas, kopā",null,null,null,null,null,{"$f":"SUM(G28:G30)","v":0},{"$f":"SUM(H28:H30)","v":0},{"$f":"SUM(I28:I30)","v":0},"X",{"$f":"SUM(K28:K30)","v":0},{"$f":"SUM(L28:L30)","v":0},"X"]
["6. Vispārējās izmaksas"]
[null,"-",null,"-","-","-","-","-","-","-","-","-"]
[null,"-",null,"-","-","-","-","-","-","-","-","-"]
[null,"-",null,"-","-","-","-","-","-","-","-","-"]
["Vispārējās izmaksas, kopā ",null,null,null,null,null,{"$f":"SUM(G33:G35)","v":0},{"$f":"SUM(H33:H35)","v":0},{"$f":"SUM(I33:I35)","v":0},"X",{"$f":"SUM(K33:K35)","v":0},{"$f":"SUM(L33:L35)","v":0},"X"]
["KOPĀ (1. līdz 6. sadaļas izmaksas)",null,null,null,null,null,null,{"$f":"H36+H31+H26+H21+H16+H11","v":5000},{"$f":"I36+I31+I26+I21+I16+I11","v":5000},"X",{"$f":"K36+K31+K26+K21+K16+K11","v":4500},{"$f":"L36+L31+L26+L21+L16+L11","v":1550},"X"]
["7. Personāla atalgojuma un darbības nodrošināšanas izmaksas"]
[null,null,null,null,null,null,null,null,null,null,"-","-"]
[null,null,"-",null,"-","-","-","-","-","-","-","-"]
[null,null,"-",null,"-","-","-","-","-","-","-","-"]
["Personāla atalgojuma un darbības nodrošināšanas izmaksas, kopā",null,null,null,null,null,{"$f":"SUM(G39:G41)","v":0},{"$f":"SUM(H39:H41)","v":0},{"$f":"SUM(I39:I41)","v":0},"X",{"$f":"SUM(K39:K41)","v":0},{"$f":"SUM(L39:L41)","v":0},"X"]
["KOPĀ ",null,null,null,null,null,null,{"$f":"H42+H31+H26+H21+H16+H11+H36","v":5000},{"$f":"I42+I31+I26+I21+I16+I11+I36","v":5000},"X",{"$f":"K42+K31+K26+K21+K16+K11+K36","v":4500},{"$f":"L42+L31+L26+L21+L16+L11+L36","v":1550}]
[]
["*Atbilstoši B.1. sadaļai"]
["B.10. Pārējās neattiecināmās izmaksas"]
["Neattiecināmo izmaksu pozīcijas",null,null,null,null,null,null,null,null,null,null,"Summa, EUR"]
["PVN",null,null,null,null,null,null,null,null,null,null,"1050.00 EUR"]
[]
["KOPĀ"]
[]
[]
[null,null,null,null,null,null,null,null,null,null,null,null,"Piemērs Nr.2 "]
[]
["B.9 Projekta iesnieguma kopējās un attiecināmās izmaksas",null,null,null,null,null,"Rīcībai \"A\", projekta attiecināmo izmaksu summa  sludinājuma noteikta 3000,00EUR"]
["Izmaksu pozīcijas sadalījumā pa plānotajām projekta darbībām un projekta posmiem",null,null,null,"mērvienība (m3/m2/gab/m/kompl)","Vienību skaits","Kopā izmaksas, EUR",null,"Attiecināmās izmaksas, EUR","Atbalsta intensitāte, %","Publiskais finansējums, EUR","Privātais finansējums, EUR","Maksājuma pieprasījuma iesniegšanas datums (DD.MM.GGGG.)","Izmaksu atbilstība darbībām (A, B)*"]
[]
[]
[null,null,null,null,null,null,"ar PVN","bez PVN"]
[1,null,null,null,2,3,4,5,6,7,8,9]
["1. Jaunu pamatlīdzekļu iegāde un uzstādīšana"]
["Pamatlīdzeklis \"A\"",null,null,null,"gab",1,{"$f":"H62*121/100","v":4840},4000,3000,90,{"$f":"I62*90/100","v":2700},{"$f":"G62-K62","v":2140},"15.09.2016","A"]
[]
[null,null,"-",null,"-","-","-","-","-","-","-","-"]
["Pamatlīdzekļu iegādes, uzstādīšanas izmaksas, kopā",null,null,null,null,null,{"$f":"SUM(G62:G64)","v":4840},{"$f":"SUM(H62:H64)","v":4000},{"$f":"SUM(I62:I64)","v":3000},"X",{"$f":"SUM(K62:K64)","v":2700},{"$f":"SUM(L62:L64)","v":2140},"X"]
[" 2. Būves būvniecības, pārbūves, ierīkošanas, novietošanas, atjaunošanas un restaurācijas izmaksas"]
[null,null,"-",null,"-","-","-","-","-","-","-","-"]
[null,null,"-",null,"-","-","-","-","-","-","-","-"]
[null,null,"-",null,"-","-","-","-","-","-","-","-"]
["Būves būvniecības, pārbūves, ierīkošanas, novietošanas, atjaunošanas un restaurācijas izmaksas, kopā ",null,null,null,null,null,{"$f":"SUM(G67:G69)","v":0},{"$f":"SUM(H67:H69)","v":0},{"$f":"SUM(I67:I69)","v":0},"X",{"$f":"SUM(K67:K69)","v":0},{"$f":"SUM(L67:L69)","v":0},"X"]
["3. Būvmateriālu iegāde"]
[null,null,"-",null,"-","-","-","-","-","-","-","-"]
[null,null,"-",null,"-","-","-","-","-","-","-","-"]
[null,null,"-",null,"-","-","-","-","-","-","-","-"]
["Izmaksas būvmateriālu iegādei, kopā",null,null,null,null,null,{"$f":"SUM(G72:G74)","v":0},{"$f":"SUM(H72:H74)","v":0},{"$f":"SUM(I72:I74)","v":0},"X",{"$f":"SUM(K72:K74)","v":0},{"$f":"SUM(L72:L74)","v":0},"X"]
["4. Mācību izmaksas"]
[null,null,"-",null,"-","-","-","-","-","-","-","-"]
[null,null,"-",null,"-","-","-","-","-","-","-","-"]
[null,null,"-",null,"-","-","-","-","-","-","-","-"]
["Mācību izmaksas, kopā",null,null,null,null,null,{"$f":"SUM(G77:G79)","v":0},{"$f":"SUM(H77:H79)","v":0},{"$f":"SUM(I77:I79)","v":0},"X",{"$f":"SUM(K77:K79)","v":0},{"$f":"SUM(L77:L79)","v":0},"X"]
["5.Sabiedrisko attiecību izmaksas, kas nepieciešamas vietas potenciāla un pievilcības veidošanai"]
[null,"-",null,"-","-","-","-","-","-","-","-","-"]
[null,"-",null,"-","-","-","-","-","-","-","-","-"]
[null,"-",null,"-","-","-","-","-","-","-","-","-"]
["Sabiedrisko attiecību izmaksas, kopā",null,null,null,null,null,{"$f":"SUM(G82:G84)","v":0},{"$f":"SUM(H82:H84)","v":0},{"$f":"SUM(I82:I84)","v":0},"X",{"$f":"SUM(K82:K84)","v":0},{"$f":"SUM(L82:L84)","v":0},"X"]
["6.Vispārējās izmaksas"]
[null,"-",null,"-","-","-","-","-","-","-","-","-"]
[null,"-",null,"-","-","-","-","-","-","-","-","-"]
[null,"-",null,"-","-","-","-","-","-","-","-","-"]
["Vispārējās izmaksas, kopā ",null,null,null,null,null,{"$f":"SUM(G87:G89)","v":0},{"$f":"SUM(H87:H89)","v":0},{"$f":"SUM(I87:I89)","v":0},"X",{"$f":"SUM(K87:K89)","v":0},{"$f":"SUM(L87:L89)","v":0},"X"]
["KOPĀ (1. līdz 6. sadaļas izmaksas)",null,null,null,null,null,null,{"$f":"H90+H85+H80+H75+H70+H65","v":4000},{"$f":"I90+I85+I80+I75+I70+I65","v":3000},"X",{"$f":"K90+K85+K80+K75+K70+K65","v":2700},{"$f":"L90+L85+L80+L75+L70+L65","v":2140},"X"]
["7. Personāla atalgojuma un darbības nodrošināšanas izmaksas"]
[null,null,null,null,null,null,null,null,null,null,"-","-"]
[null,null,"-",null,"-","-","-","-","-","-","-","-"]
[null,null,"-",null,"-","-","-","-","-","-","-","-"]
["Personāla atalgojuma un darbības nodrošināšanas izmaksas, kopā",null,null,null,null,null,{"$f":"SUM(G93:G95)","v":0},{"$f":"SUM(H93:H95)","v":0},{"$f":"SUM(I93:I95)","v":0},"X",{"$f":"SUM(K93:K95)","v":0},{"$f":"SUM(L93:L95)","v":0},"X"]
["KOPĀ ",null,null,null,null,null,null,{"$f":"H96+H85+H80+H75+H70+H65+H90","v":4000},{"$f":"I96+I85+I80+I75+I70+I65+I90","v":3000},"X",{"$f":"K96+K85+K80+K75+K70+K65+K90","v":2700},{"$f":"L96+L85+L80+L75+L70+L65+L90","v":2140}]
["*Atbilstoši B.1. sadaļai"]
[]
[]
["B.10 Pārējās neattiecināmās izmaksas"]
["Neattiecināmo izmaksu pozīcijas",null,null,null,null,null,null,null,null,null,null,"Summa, EUR"]
["Pamatlīdzeklis \"B\"",null,null,null,null,null,null,null,null,null,null,1000]
["PVN",null,null,null,null,null,null,null,null,null,null,840]
["Pamatlīdzeklis\"A\"",null,null,null,null,null,null,null,null,null,null,1000]
["KOPĀ",null,null,null,null,null,null,null,null,null,null,{"$f":"SUM(L103:N105)","v":2840}]

{"sheet":"c. Pavaddok-ti","index":5,"n_rows":58,"n_cols":17,"rows_kept":58,"cut":false,"hidden":false,"merged":[[12,1,12,12],[44,0,44,16],[24,1,24,12],[25,1,25,12],[26,1,26,12],[14,0,14,16],[21,1,21,12],[40,0,40,16],[41,0,41,16],[27,1,27,12],[28,1,28,12],[19,1,19,12],[20,1,20,12],[42,0,42,16],[43,0,43,16],[22,0,22,16],[1,1,1,16],[15,1,15,12],[16,1,16,12],[17,1,17,12],[18,1,18,12],[11,0,11,16],[2,14,2,16],[3,14,3,16],[2,0,4,13],[5,1,5,12],[6,1,6,12],[8,1,8,12],[9,1,9,12],[10,1,10,12],[7,1,7,12],[13,1,13,12],[23,1,23,12],[39,0,39,16],[29,1,29,12],[31,1,31,12],[38,0,38,16],[36,1,36,12],[37,1,37,12],[30,0,30,16],[32,0,32,16],[34,0,34,16],[33,1,33,12],[35,1,35,12],[49,7,49,16],[50,0,50,16],[45,1,45,6],[45,7,45,13],[45,14,45,30],[46,7,46,13],[48,1,48,6],[48,7,48,16]]}
["C.   PAVADDOKUMENTI"]
["C1.","Iesniedzamie dokumenti:"]
["Iesniedzamie dokumenti (ja veidlapu iesniedz saskaņā ar normatīvajos aktos par elektronisko dokumentu noformēšanu noteiktajām prasībām, arī pavaddokumenti iesniedzami atbilstoši minēto normatīvo aktu prasībām)",null,null,null,null,null,null,null,null,null,null,null,null,null,"Aizpilda atbalsta pretendents"]
[null,null,null,null,null,null,null,null,null,null,null,null,null,null,"Atzīmēt ar X atbilstošo atbildi"]
[null,null,null,null,null,null,null,null,null,null,null,null,null,null,"Jā","Nē","Neattiecas"]
["1.","Projekta iesnieguma pilns komplekts (2 eksemplāros) un tā elektroniskā versija ",null,null,null,null,null,null,null,null,null,null,null,"oriģināli"]
["2.","Pretendenta deklarācija saskaņā ar normatīvajiem aktiem par valsts un Eiropas Savienības atbalsta piešķiršanu, administrēšanu un uzraudzību lauku un zivsaimniecības attīstībai 2014.–2020. gada plānošanas periodā",null,null,null,null,null,null,null,null,null,null,null,"oriģināls"]
["3.","Ja attiecas uz pretendentu – uzskaites veidlapa par saņemto de minimis atbalstu saskaņā ar normatīvajiem aktiem par de minimis atbalsta uzskaites un piešķiršanas kārtību un uzskaites veidlapu paraugiem",null,null,null,null,null,null,null,null,null,null,null,"oriģināls"]
["4.","Ilgtermiņa nomas vai patapinājuma līgums (uzrāda oriģinālu), kas noslēgts vismaz uz septiņiem gadiem no projekta iesniegšanas dienas",null,null,null,null,null,null,null,null,null,null,null,"kopija"]
["5.","Saskaņojums ar nekustamā īpašuma īpašnieku par atsevišķu labiekārtojuma elementu, stacionāro reklāmas vai informācijas stendu uzstādīšanu vai tādu pamatlīdzekļu novietošanu vai uzglabāšanu, kuri nav stacionāri novietojami, ja vien projektā plānotās darbības neīsteno noteiktā telpā (noslēgts vismaz uz septiņiem gadiem no projekta iesnieguma iesniegšanas dienas)",null,null,null,null,null,null,null,null,null,null,null,"kopija"]
["6.","Valsts vides dienesta reģionālās vides pārvaldes izziņa par to, kura piesārņojoša darbība tiks veikta, īstenojot projektu, un kuru atļauju – A vai B kategorijas piesārņojošas darbības atļauju vai C kategorijas piesārņojošas darbības apliecinājumu – pretendentam ir nepieciešams saņemt, ja šī prasība attiecas uz pretendentu saskaņā ar normatīvajiem aktiem par piesārņojošo darbību veikšanu",null,null,null,null,null,null,null,null,null,null,null,"oriģināli"]
["Gadījumos, kad jāpiemēro iepirkuma procedūra saskaņā ar Publisko iepirkuma likumu1, 2"]
["7.","Iepirkuma procedūras dokumenti saskaņā ar Publisko iepirkumu likumu",null,null,null,null,null,null,null,null,null,null,null,"kopijas"]
["8.","Dokumenti, kas pierāda projektā plānoto preču vai pakalpojumu cenu pamatotību un atbilstību tirgus cenai",null,null,null,null,null,null,null,null,null,null,null,"kopijas"]
["Gadījumos, kad jāpiemēro Latvijas Republikas normatīvie akti par iepirkuma procedūrām pasūtītāja finansētiem projektiem, iepirkuma procedūru apliecinošie dokumenti1, 3"]
["9.","Iepirkuma priekšmeta tehniskā specifikācija",null,null,null,null,null,null,null,null,null,null,null,"oriģināls"]
["10.","Iepirkuma uzraudzības biroja (turpmāk – IUB) publicēts uzaicinājums",null,null,null,null,null,null,null,null,null,null,null,"izdruka"]
["11.","Saņemtie piedāvājumi no iespējamiem piegādātājiem",null,null,null,null,null,null,null,null,null,null,null,"kopija"]
["12.","IUB publicētie grozījumi",null,null,null,null,null,null,null,null,null,null,null,"izdruka"]
["13.","IUB publicētais gala lēmums",null,null,null,null,null,null,null,null,null,null,null,"izdruka"]
["14.","Vērtēšanas ziņojums",null,null,null,null,null,null,null,null,null,null,null,"oriģināls"]
["15.","Atbalsta pretendenta apraksts par piedāvājumu salīdzinājumu konkrētajai iegādei un informācija par aptaujātajiem komersantiem, lai apliecinātu noteiktās cenas objektivitāti4",null,null,null,null,null,null,null,null,null,null,null,"oriģināls/ kopijas"]
["Jaunas būvniecības, būves pārbūves, būves ierīkošanas, būves novietošanas un būves atjaunošanas projektiem"]
["16.","lgtermiņa nomas līgums, kas reģistrēts zemesgrāmatā vismaz uz septiņiem gadiem no projekta iesnieguma iesniegšanas dienas, par nekustamo īpašumu, kurā, īstenojot projektu, paredzēta jaunas būves būvniecība, būves pārbūve, būves ierīkošana, būves novietošana, būves restaurācija vai būves atjaunošana, ja īpašums tiek nomāts (var iesniegt arī pirms projekta īstenošanas uzsākšanas)","kopija",null,null,null,null,null,null,null,null,null,null,"kopija"]
["17."," Būvatļauja ar būvvaldes atzīmi par būvniecības ieceres akceptu, ja iesniegšanas dienā nav apstiprināts tehniskais projekts3, 5","kopija",null,null,null,null,null,null,null,null,null,null,"kopija"]
["18."," Paskaidrojuma raksts (apliecinājuma karte) ar būvvaldes atzīmi par būvniecības ieceres akceptu, izstrādāts atbilstoši būvniecību reglamentējošajiem normatīvajiem aktiem un attiecīgās pašvaldības saistošajiem noteikumiem 3, 5","kopija",null,null,null,null,null,null,null,null,null,null,"kopija"]
["19.","Sagatavota būvniecības izmaksu tāme, ja atbilstoši plānotajai būvniecības iecerei būvvalde atbalsta pretendentam izsniegusi paskaidrojuma rakstu (apliecinājuma karti)3, 5","oriģināls",null,null,null,null,null,null,null,null,null,null,"oriģināls"]
["20.","Būvmateriālu iegādei – būvprojekts vai tā kopija un būvatļauja ar būvvaldes atzīmi par projektēšanas nosacījumu izpildi, ja būvvalde atbilstoši plānotajai būvniecības iecerei nav izsniegusi paskaidrojuma rakstu (apliecinājuma karti)3, 5","oriģināls/ kopijas",null,null,null,null,null,null,null,null,null,null,"oriģināls/ kopija"]
["21.","Būvprojekts ar būvatļaujā izdarītu atzīmi par projektēšanas nosacījumu izpildi3, 5","kopija",null,null,null,null,null,null,null,null,null,null,"kopija"]
["22."," Papildināta būvatļauja vai papildināts paskaidrojuma raksts (apliecinājuma karte) ar būvvaldes atzīmi par būvdarbu uzsākšanas nosacījumu izpildi 6","kopija",null,null,null,null,null,null,null,null,null,null,"kopija"]
["Ja pretendents ir biedrība vai nodibinājums"]
["23.","Valdes apstiprināts lēmums par projekta īstenošanu un visām no tā izrietošajām saistībām, norādot projekta kopējās izmaksas un finansēšanas avotus","oriģināls",null,null,null,null,null,null,null,null,null,null,"oriģināls"]
["Ja pretendents ir vietējā pašvaldība"]
["24."," Vietējās pašvaldības lēmums par piedalīšanos projektā un projekta īstenošanai nepieciešamā finansējuma apmēru","oriģināls",null,null,null,null,null,null,null,null,null,null,"oriģināls"]
["Citi iesniegtie dokumenti"]
["25.","Ja projektā tiek radīts jauns pakalpojums vai attīstīts esošs pakalpojums – dokuments, kas pamato projekta īstenošanas rezultāta uzturēšanu projekta uzraudzības periodā",null,null,null,null,null,null,null,null,null,null,null,"oriģināls"]
["26.","Pašnovērtējums par projekta atbilstību vietējās attīstības stratēģijā attiecīgajai rīcībai noteiktajiem projektu vērtēšanas kritērijiem",null,null,null,null,null,null,null,null,null,null,null,"oriģināls"]
[27]
["Piezīmes."]
["1 Iepirkuma dokumentus, kas saistīti ar būvniecības izmaksām, var iesniegt kopā ar projekta iesniegumu vai sešu mēnešu laikā pēc tam, kad stājies spēkā Lauku atbalsta dienesta lēmums par projekta iesnieguma apstiprināšanu, bet ne vēlāk kā piecu darbdienu laikā pēc iepirkuma procedūras pabeigšanas."]
["2 Iepirkuma dokumentus, kas saistīti ar preces iegādi vai pakalpojumu (izņemot būvdarbus), var iesniegt kopā ar projekta iesniegumu vai sešu mēnešu laikā pēc tam, kad stājies spēkā Lauku atbalsta dienesta lēmums par projekta iesnieguma apstiprināšanu, bet ne vēlāk kā piecu darbdienu laikā pēc iepirkuma procedūras pabeigšanas."]
["3 Ja atbalsta saņemšanai izmanto rēķinu priekšapmaksu, iesniedz kopā ar rēķina priekšapmaksas pieprasījumu un iepirkuma dokumentiem, kas saistīti ar būvniecības izmaksām."]
["4 Saskaņā ar normatīvajiem aktiem par valsts un Eiropas Savienības atbalsta piešķiršanu, administrēšanu un uzraudzību lauku un zivsaimniecības attīstībai 2014.–2020. gada plānošanas periodā."]
["5 Var iesniegt sešu mēnešu laikā pēc tam, kad stājies spēkā Lauku atbalsta dienesta lēmums par projekta iesnieguma apstiprināšanu."]
["6 Var iesniegt deviņu mēnešu laikā pēc tam, kad stājies spēkā Lauku atbalsta dienesta lēmums par projekta iesnieguma apstiprināšanu."]
[null,"Projekta iesniegums iesniegts"]
[null,null,null,null,null,null,null,"(datums*)"]
[]
[null,"Atbalsta pretendents "]
[null,null,null,null,null,null,null,"(vārds, uzvārds, paraksts*)"]
["Piezīme.* Dokumenta rekvizītus \"datums\" un \"paraksts\" neaizpilda, ja dokuments ir sagatavots atbilstoši normatīvajiem aktiem par elektronisko dokumentu noformēšanu."]
[]
[]
[]
[]
[]
[]
[null,null,null,null,null,null,null,null,null," "]

{"sheet":"1.pielikums","index":6,"n_rows":26,"n_cols":2,"rows_kept":26,"cut":false,"hidden":false,"merged":[[0,0,0,1]]}
["Galvenās jomas*,  kuras projekta īstenošanas rezultātā sekmēs mērķu sasniegšanu saistībā ar klimatu pārmaiņām:"]
[{"$f":"1","v":1},"Atjaunojama enerģija: vējš"]
[{"$f":"A2+1","v":2},"Atjaunojama enerģija: saule"]
[3,"Atjaunojama enerģija: biomasa"]
[4,"Cita atjaunojama enerģija (tostarp hidroelektroenerģija, ģeotermālā enerģija un jūras enerģija) un atjaunojamas enerģijas integrācija (tostarp uzglabāšana, strāva līdz gāzei un atjaunojamā ūdeņraža struktūra)"]
[5,"Publiskās infrastruktūras atjaunošana energoefektivitātes uzlabošanai, projektu demonstrēšana un atbalsta pasākumi"]
[6,"Esošu mājokļu atjaunošana energoefektivitātes uzlabošanai, projektu demonstrēšana un atbalsta pasākumi"]
[7,"Gudras enerģijas sadales sistēmas vidējos uz zemsprieguma līmeņos (tostarp viedtīkli un IKT sistēmas)"]
[8,"Augstas efektivitātes koģenerācija un centrālā apkure"]
[9,"Ūdens apsaimniekošana un dzeramā ūdens saglabāšana (tostarp upju baseinu apsaimniekošana, ūdens apgāde, konkrēti pasākumi, lai pielāgotos klimata pārmaiņām, rajonu un patērētāju patēriņa uzskaitīšana, iekasēšanas sistēmas un noplūdes mazināšana)"]
[10,"Vides pasākumi ar mērķi samazināt un/vai novērst siltumnīcefekta gāzu emisijas (tostarp metāna apstrāde un uzglabāšana un kompostēšana)"]
[11,"Iekšzemes ūdensceļi un ostas (reģionālas un vietējas nozīmes)"]
[12,"Tīra pilsētas transporta infrastruktūra un veicināšana (tostarp aprīkojums un ritošais sastāvs)"]
[13,"Inteliģentas transporta sistēmas (tostarp pieprasījuma vadības ieviešana, nodevu iekasēšanas sistēmas, IT uzraudzība, kontrole un informācija)"]
[14,"Pētniecības un inovācijas infrastruktūra, procesi, tehnoloģiju pārnese un sadarbība uzņēmumos, kas pievēršas zemu oglekļa emisiju ekonomikai un noturībai pret klimata pārmaiņām"]
[15,"Energoefektivitāte un projektu demonstrēšana MVU un atbalsta pasākumi"]
[16,"Atbalsts videi draudzīgiem ražošanas procesiem un resursu efektivitātei MVU"]
[17,"Energoefektivitātes veicināšana lielos uzņēmumos"]
[18,"Tādu uzņēmumu attīstība un veicināšana, kas specializējas pakalpojumu sniegšanā, kas sekmē zemu oglekļa emisiju ekonomiku un noturību pret klimata pārmaiņām (tostarp atbalsts šādiem pakalpojumiem)"]
[19,"Gaisa kvalitātes pasākumi"]
[20,"Piesārņojuma integrētā novēršana un kontrole (IPNK)"]
[21,"Bioloģiskās daudzveidības aizsardzība un spēcināšana, dabas aizsardzība un zaļā infrastruktūra"]
[22,"Natura 2000 teritoriju aizsardzība, atjaunošana un ilgtspējīga lietošana"]
[23,"Pasākumi saistībā ar pielāgošanos klimata pārmaiņām un ar klimatu saistīto risku (piemēram, erozijas, ugunsgrēku, plūdu, vētru un sausumu) profilakses un vadības pasākumi, tostarp izpratnes veidošana, civilā aizsardzība un katastrofu pārvarēšanas sistēmas un infrastruktūras"]
[24,"Velosipēdu celiņi un gājēju celiņi"]
[null,"*KOMISIJAS ĪSTENOŠANAS REGULA (ES) Nr. 215/2014 (2014. gada 7. marts),ar kuru paredz noteikumus, kā īstenot Eiropas Parlamenta un Padomes Regulu (ES) Nr. 1303/2013, ar ko paredz kopīgus noteikumus par Eiropas Reģionālās attīstības fondu, Eiropas Sociālo fondu, Kohēzijas fondu, Eiropas Lauksaimniecības fondu lauku attīstībai un Eiropas Jūrlietu un zivsaimniecības fondu un vispārīgus noteikumus par Eiropas Reģionālās attīstības fondu, Eiropas Sociālo fondu, Kohēzijas fondu un Eiropas Jūrlietu un zivsaimniecības fondu, attiecībā uz metodoloģiju klimata pārmaiņu mērķu sasniegšanas atbalstam, starpposma mērķu un galamērķu noteikšanu darbības rezultātu satvarā un intervences kategoriju nomenklatūru Eiropas strukturālajiem un investīciju fondiem"]